bitfinex/quotes_SOLUSD_20250315
["timestamp","ask_amount","ask_price","bid_price","bid_amount"]
[1742051892352,18.79181043,135.27,135.25,0.063]
[1742051892537,0.14216157,135.26,135.25,0.063]
[1742051892745,25.313972,135.26,135.25,0.063]
[1742051894721,32.707072,135.26,135.25,0.063]
[1742051896220,25.313972,135.26,135.25,0.063]
[1742051898139,6.52216157,135.26,135.25,0.063]
[1742051902928,20.0,135.26,135.25,0.063]
[1742051904347,20.14216157,135.26,135.25,0.063]
[1742051908356,27.53526157,135.26,135.25,0.063]
[1742051909133,20.14216157,135.26,135.25,0.063]
[1742051911630,27.53526157,135.26,135.25,0.063]
[1742051911951,20.14216157,135.26,135.25,0.063]
[1742051912153,27.53526157,135.26,135.25,0.063]
[1742051914255,46.327072,135.26,135.25,0.063]
[1742051921003,38.933972,135.26,135.25,0.063]
[1742051921179,46.327072,135.26,135.25,0.063]
[1742051923978,38.933972,135.26,135.25,0.063]
[1742051925301,46.327072,135.26,135.25,0.063]
[1742051947163,0.14216157,135.25,135.24,0.063]
[1742051947668,7.53586157,135.25,135.24,0.063]
[1742051949573,0.14216157,135.23,135.19,85.41526848]
[1742051950070,7.53696157,135.23,135.19,85.41526848]
[1742051950297,7.53696157,135.23,135.19,78.01836848]
[1742051952659,13.91696157,135.23,135.19,78.01836848]
[1742051953460,0.14216157,135.21,135.16,77.95536848]
[1742051953655,0.14216157,135.21,135.15,7.399]
[1742051953974,0.14216157,135.21,135.17,7.9498]
[1742051954153,13.7748,135.23,135.17,7.9498]
[1742051954351,0.14216157,135.22,135.17,85.90516848]
[1742051954973,0.14216157,135.22,135.17,93.30316848]
[1742051964378,20.0,135.2,135.17,93.30316848]
[1742051964766,20.0,135.19,135.17,0.063]
[1742051964965,20.0,135.18,135.17,0.063]
[1742051966360,6.38,135.21,135.17,0.063]
[1742051966657,20.0,135.19,135.18,1.504]
[1742051967456,20.0,135.19,135.17,84.38046848]
[1742051969165,20.0,135.19,135.17,78.01836848]
[1742051970180,20.0,135.19,135.17,0.063]
[1742051970776,20.0,135.18,135.17,0.063]
[1742051970980,20.28432314,135.18,135.17,0.063]
[1742051971153,38.933972,135.18,135.17,0.063]
[1742051971561,20.14216157,135.18,135.17,0.063]
[1742051971779,20.0,135.18,135.17,0.063]
[1742051973463,26.10804886,135.22,135.17,0.063]
[1742051973464,0.063,135.22,135.17,0.063]
[1742051973665,20.0,135.2,135.17,0.063]
[1742051974079,18.933972,135.19,135.17,0.063]
[1742051976081,26.330972,135.19,135.17,0.063]
[1742051978978,18.933972,135.19,135.17,0.063]
[1742051979786,20.0,135.18,135.17,0.063]
[1742051980178,20.0,135.2,135.17,0.063]
[1742051980482,0.20516157,135.22,135.17,0.063]
[1742051980864,0.20516157,135.22,135.17,7.461]
[1742051981068,20.0,135.21,135.17,85.41636848]
[1742051983690,0.063,135.19,135.17,85.41636848]
[1742051984572,0.063,135.19,135.17,7.461]
[1742051984873,45.313972,135.18,135.17,0.063]
[1742051987390,52.711472,135.18,135.17,0.063]
[1742051993395,45.313972,135.18,135.17,0.063]
[1742051994504,26.52216157,135.18,135.17,0.063]
[1742051996904,26.38,135.18,135.17,0.063]
[1742051997206,20.0,135.18,135.17,0.063]
[1742051998694,0.063,135.19,135.17,0.063]
[1742051998904,0.063,135.19,135.17,7.461]
[1742052001014,0.063,135.19,135.17,85.41636848]
[1742052001309,0.063,135.22,135.19,77.89236848]
[1742052001479,0.063,135.22,135.2,6.4018]
[1742052001679,0.063,135.22,135.21,1.6062]
[1742052002484,0.063,135.22,135.21,80.60756076]
[1742052002485,0.0001,135.22,135.21,80.60756076]
[1742052002687,0.0001,135.22,135.21,86.98756076]
[1742052003080,0.0001,135.22,135.21,94.88346076]
[1742052003389,0.03,135.27,135.21,305.10230962]
[1742052003717,0.03,135.27,135.22,18.64964886]
[1742052004719,0.03,135.27,135.22,20.2583211]
[1742052005003,0.03,135.27,135.24,1.6065]
[1742052005200,0.03,135.27,135.25,7.3937]
[1742052006119,0.03,135.27,135.24,79.49886848]
[1742052007202,0.03,135.27,135.24,80.60744198]
[1742052008321,0.03,135.27,135.25,7.3937]
[1742052008517,0.17216157,135.32,135.27,77.86236848]
[1742052008518,0.03,135.32,135.27,77.86236848]
[1742052008822,0.03,135.32,135.29,1.6065]
[1742052010403,0.03,135.32,135.29,8.9979]
[1742052014036,0.03,135.32,135.29,86.86026848]
[1742052015308,0.03,135.32,135.29,105.33906848]
[1742052015525,0.03,135.32,135.29,111.73906848]
[1742052016545,0.03,135.32,135.29,93.26026848]
[1742052016718,0.03,135.32,135.29,79.46886848]
[1742052017220,0.03,135.32,135.29,77.86236848]
[1742052027045,0.03,135.32,135.29,85.25386848]
[1742052031050,0.03,135.32,135.29,103.73266848]
[1742052031253,0.03,135.32,135.29,85.25386848]
[1742052032350,0.03,135.32,135.29,77.86236848]
[1742052032848,0.03,135.32,135.29,85.25376848]
[1742052034029,0.03,135.32,135.29,77.86236848]
[1742052038064,0.03,135.32,135.29,85.25366848]
[1742052045258,0.03,135.32,135.29,103.73246848]
[1742052046259,0.03,135.32,135.29,85.25366848]
[1742052047941,0.03,135.32,135.29,103.73246848]
[1742052049643,0.03,135.32,135.29,105.28666848]
[1742052052044,0.03,135.32,135.29,86.80786848]
[1742052056259,0.03,135.32,135.29,85.25366848]
[1742052058853,0.03,135.32,135.29,103.73246848]
[1742052061556,0.03,135.32,135.3,1.10815057]
[1742052061782,0.03,135.32,135.3,85.52831905]
[1742052062153,0.03,135.32,135.3,84.42016848]
[1742052062971,0.03,135.32,135.31,7.3904]
[1742052064472,0.03,135.32,135.31,85.25276848]
[1742052066153,0.0001,135.33,135.31,106.65783701]
[1742052066352,0.063,135.36,135.33,77.86226848]
[1742052066550,0.063,135.36,135.34,1.10775918]
[1742052068279,0.063,135.36,135.35,7.3882]
[1742052068571,0.063,135.36,135.35,85.25046848]
[1742052069477,0.0001,135.37,135.36,8.2187]
[1742052069679,0.0001,135.37,135.36,86.08096848]
[1742052070481,0.0001,135.37,135.36,93.46866848]
[1742052070687,0.0001,135.37,135.36,86.89726848]
[1742052073168,0.0001,135.37,135.36,85.24996848]
[1742052079683,0.03,135.39,135.37,79.41286848]
[1742052079870,0.03,135.41,135.37,223.60028377]
[1742052080072,0.0001,135.41,135.39,7.386]
[1742052080372,0.0001,135.41,135.39,8.49323575]
[1742052080965,0.0001,135.41,135.39,7.386]
[1742052082068,0.0001,135.41,135.39,85.24816848]
[1742052086388,0.0001,135.41,135.39,77.86216848]
[1742052088790,0.0001,135.41,135.39,85.24816848]
[1742052093985,20.0001,135.41,135.39,85.24816848]
[1742052094327,0.0001,135.41,135.39,85.24816848]
[1742052096089,0.0001,135.41,135.39,87.91944514]
[1742052097703,0.0001,135.41,135.4,6.5154]
[1742052098002,0.03,135.46,135.41,77.86206848]
[1742052098187,0.03,135.46,135.42,7.3844]
[1742052098586,0.03,135.46,135.42,103.70746848]
[1742052099786,0.03,135.46,135.43,1.10701554]
[1742052099993,0.0001,135.46,135.43,1.10701554]
[1742052100196,0.0001,135.46,135.44,7.3833]
[1742052100501,0.0001,135.46,135.44,85.24536848]
[1742052117615,0.0001,135.46,135.44,85.30836848]
[1742052160540,0.0001,135.46,135.45,6.46]
[1742052160945,0.03,135.5,135.46,84.01526848]
[1742052161132,0.03,135.5,135.47,1.1067269]
[1742052161954,0.03,135.5,135.48,7.3811]
[1742052162532,0.03,135.5,135.48,85.24306848]
[1742052165057,0.03,135.5,135.48,77.86196848]
[1742052168262,0.03,135.5,135.48,85.24306848]
[1742052171669,0.03,135.5,135.49,1.10654298]
[1742052171854,0.03,135.51,135.5,77.83196848]
[1742052172860,0.03,135.51,135.5,85.21196848]
[1742052173767,0.03,135.51,135.5,77.83196848]
[1742052188077,0.03,135.51,135.5,85.21196848]
[1742052189396,0.03,135.51,135.5,85.27496848]
[1742052189900,0.03,135.51,135.5,77.89496848]
[1742052190270,0.03,135.51,135.5,85.27496848]
[1742052191273,0.03,135.51,135.5,77.89496848]
[1742052191984,38.963972,135.51,135.5,0.063]
[1742052193666,46.343472,135.51,135.5,0.063]
[1742052196486,20.17216157,135.51,135.5,0.063]
[1742052197600,20.03,135.51,135.5,0.063]
[1742052200802,38.963972,135.51,135.5,0.063]
[1742052201299,46.343472,135.51,135.5,0.063]
[1742052202592,38.963972,135.51,135.5,0.063]
[1742052203893,20.17216157,135.51,135.5,0.063]
[1742052207706,0.03,135.51,135.5,0.063]
[1742052208090,0.03,135.51,135.5,77.89496848]
[1742052208291,0.03,135.51,135.5,85.27496848]
[1742052209105,20.03,135.51,135.5,77.89496848]
[1742052209503,38.963972,135.51,135.5,0.063]
[1742052210307,46.343472,135.51,135.5,0.063]
[1742052220112,45.523972,135.51,135.5,0.063]
[1742052221032,52.903472,135.51,135.5,0.063]
[1742052222623,45.523972,135.51,135.5,0.063]
[1742052223024,38.963972,135.51,135.5,0.063]
[1742052223692,18.963972,135.51,135.5,0.063]
[1742052224918,20.03,135.51,135.5,77.89496848]
[1742052226703,20.28432314,135.47,135.46,0.063]
[1742052226902,0.14216157,135.45,135.44,0.063]
[1742052233421,26.70216157,135.47,135.44,0.063]
[1742052233725,0.14216157,135.46,135.44,0.063]
[1742052234307,20.0,135.48,135.44,77.89496848]
[1742052234507,0.14216157,135.49,135.44,77.89496848]
[1742052234823,20.0,135.47,135.45,7.3827]
[1742052235617,0.03,135.51,135.45,7.3827]
[1742052235827,0.14216157,135.5,135.46,1.6152]
[1742052237023,0.14216157,135.5,135.47,7.3817]
[1742052237406,7.52236157,135.5,135.46,1.6152]
[1742052237618,0.14216157,135.5,135.46,8.9974]
[1742052238225,20.0,135.48,135.46,8.9974]
[1742052238427,20.0,135.48,135.46,86.82936848]
[1742052240428,20.0,135.48,135.46,77.83196848]
[1742052240808,20.0,135.48,135.46,85.21406848]
[1742052243612,20.0,135.48,135.46,77.83196848]
[1742052243812,20.0,135.47,135.46,77.83196848]
[1742052244233,38.933972,135.47,135.46,77.83196848]
[1742052247432,46.315672,135.47,135.46,77.83196848]
[1742052248637,46.315672,135.47,135.44,0.063]
[1742052249242,46.315672,135.47,135.46,0.063]
[1742052252234,52.835672,135.47,135.46,0.063]
[1742052257940,45.453972,135.47,135.46,0.063]
[1742052260949,38.933972,135.47,135.46,0.063]
[1742052261553,46.315672,135.47,135.46,0.063]
[1742052268551,18.933972,135.42,135.4,77.83196848]
[1742052268741,18.933972,135.42,135.37,85.21876848]
[1742052270952,26.318472,135.42,135.37,85.21876848]
[1742052271157,18.933972,135.42,135.37,85.21876848]
[1742052272955,0.14216157,135.42,135.37,103.74966848]
[1742052278154,18.933972,135.42,135.37,85.28176848]
[1742052281661,0.14216157,135.42,135.37,103.74966848]
[1742052300283,18.79181043,135.43,135.37,85.28176848]
[1742052300487,0.14216157,135.43,135.37,85.28176848]
[1742052301368,0.28432314,135.43,135.37,85.28176848]
[1742052301770,7.66822314,135.43,135.37,85.28176848]
[1742052302170,0.28432314,135.43,135.37,85.28176848]
[1742052303595,7.66822314,135.43,135.37,85.28176848]
[1742052306793,0.14216157,135.4,135.37,85.28176848]
[1742052306970,18.79181043,135.41,135.37,85.28176848]
[1742052325301,0.14216157,135.4,135.37,77.89496848]
[1742052327592,0.14216157,135.4,135.37,85.28196848]
[1742052338409,0.14216157,135.4,135.37,77.89496848]
[1742052340033,38.79181043,135.38,135.37,0.063]
[1742052341834,38.933972,135.38,135.37,0.063]
[1742052342017,47.972772,135.38,135.37,0.063]
[1742052346232,20.0,135.34,135.32,77.89496848]
[1742052346744,20.0,135.34,135.32,85.28476848]
[1742052355127,20.0,135.34,135.32,77.89496848]
[1742052355516,18.933972,135.34,135.32,77.89496848]
[1742052355723,18.933972,135.34,135.32,0.063]
[1742052365128,26.322972,135.34,135.32,0.063]
[1742052365629,25.333972,135.34,135.32,0.063]
[1742052366633,32.722772,135.34,135.32,0.063]
[1742052372958,25.333972,135.34,135.32,0.063]
[1742052373846,32.722772,135.34,135.32,0.063]
[1742052378077,38.933972,135.31,135.27,77.86196848]
[1742052378372,38.933972,135.31,135.27,0.03]
[1742052378941,18.933972,135.29,135.27,0.03]
[1742052379158,25.333972,135.28,135.27,0.03]
[1742052380142,31.20420772,135.28,135.27,0.03]
[1742052380548,25.333972,135.28,135.27,0.03]
[1742052380744,18.933972,135.28,135.27,0.03]
[1742052381663,38.933972,135.28,135.27,0.03]
[1742052388374,46.325972,135.28,135.27,0.03]
[1742052390457,26.325972,135.28,135.27,0.03]
[1742052392254,34.31721887,135.28,135.27,0.03]
[1742052393257,34.31721887,135.28,135.27,0.0001]
[1742052394160,35.95811887,135.28,135.27,0.0001]
[1742052394555,20.28432314,135.24,135.23,0.063]
[1742052394759,45.333972,135.24,135.23,0.063]
[1742052395757,52.728172,135.24,135.23,0.063]
[1742052396067,54.08251887,135.24,135.23,0.063]
[1742052396466,55.61871887,135.24,135.23,0.063]
[1742052400167,59.23983453,135.24,135.23,0.063]
[1742052400571,57.70363453,135.24,135.23,0.063]
[1742052402195,30.30943453,135.24,135.23,0.063]
[1742052402587,26.68831887,135.24,135.23,0.063]
[1742052404191,34.08251887,135.24,135.23,0.063]
[1742052404562,26.68831887,135.24,135.23,0.063]
[1742052405682,34.08251887,135.24,135.23,0.063]
[1742052413083,27.68251887,135.24,135.23,0.063]
[1742052413289,34.08251887,135.24,135.23,0.063]
[1742052418485,26.68831887,135.24,135.23,0.063]
[1742052418694,32.728172,135.24,135.23,0.063]
[1742052419075,25.333972,135.24,135.23,0.063]
[1742052421866,32.728172,135.24,135.23,0.063]
[1742052422790,25.333972,135.24,135.23,0.063]
[1742052429493,0.063,135.25,135.23,0.063]
[1742052429695,0.063,135.28,135.24,8.005]
[1742052429892,0.063,135.28,135.24,85.83696848]
[1742052430076,0.14216157,135.3,135.24,85.83696848]
[1742052430404,0.28432314,135.3,135.24,85.83696848]
[1742052430892,20.0,135.27,135.24,85.83696848]
[1742052431097,0.28432314,135.26,135.24,85.83696848]
[1742052431487,18.933972,135.26,135.24,85.83696848]
[1742052435387,18.933972,135.26,135.24,79.45236848]
[1742052436702,38.933972,135.24,135.23,0.063]
[1742052438179,46.328172,135.24,135.23,0.063]
[1742052450792,52.522772,135.24,135.23,0.0001]
[1742052454005,46.328172,135.24,135.23,0.0001]
[1742052463819,46.391172,135.24,135.23,0.0001]
[1742052464020,38.996972,135.24,135.23,0.0001]
[1742052464224,45.396972,135.24,135.23,0.0001]
[1742052464737,52.791172,135.24,135.23,0.0001]
[1742052472643,45.396972,135.24,135.23,0.0001]
[1742052476739,52.791172,135.24,135.23,0.0001]
[1742052480666,45.396972,135.24,135.23,0.0001]
[1742052483559,52.791172,135.24,135.23,0.0001]
[1742052487859,20.0,135.16,135.13,85.54086848]
[1742052488042,20.0,135.15,135.13,85.54086848]
[1742052488242,6.4,135.18,135.13,85.54086848]
[1742052488760,18.933972,135.17,135.13,85.54086848]
[1742052490558,26.332072,135.17,135.13,85.54086848]
[1742052490749,26.332072,135.17,135.13,7.7089]
[1742052492259,38.933972,135.14,135.13,0.03]
[1742052495850,20.0,135.14,135.13,0.03]
[1742052496773,18.933972,135.16,135.13,0.03]
[1742052497069,18.933972,135.16,135.14,6.1572]
[1742052497252,18.933972,135.2,135.15,7.3991]
[1742052497453,20.0,135.17,135.15,7.3991]
[1742052498749,0.14216157,135.2,135.15,85.23106848]
[1742052498950,20.0,135.18,135.15,85.23106848]
[1742052499270,20.0,135.18,135.15,103.72896848]
[1742052503970,18.933972,135.17,135.15,85.23106848]
[1742052504179,18.933972,135.17,135.15,77.83196848]
[1742052504780,18.79181043,135.19,135.15,85.23106848]
[1742052505158,0.14216157,135.18,135.15,85.23106848]
[1742052505563,18.79181043,135.19,135.15,85.23106848]
[1742052509963,18.79181043,135.19,135.15,85.26106848]
[1742052517091,0.14216157,135.18,135.15,85.26106848]
[1742052521290,0.14216157,135.18,135.15,77.86196848]
[1742052522465,18.79181043,135.17,135.15,77.86196848]
[1742052524571,7.54026157,135.17,135.15,77.86196848]
[1742052524968,0.14216157,135.16,135.15,77.86196848]
[1742052526179,7.68202314,135.18,135.15,77.86196848]
[1742052526687,0.14216157,135.18,135.15,77.86196848]
[1742052527093,0.14216157,135.16,135.15,77.86196848]
[1742052527878,0.28432314,135.18,135.15,77.86196848]
[1742052529194,20.14216157,135.17,135.15,77.86196848]
[1742052531792,27.54016157,135.17,135.15,77.86196848]
[1742052534597,27.60316157,135.17,135.15,77.86196848]
[1742052535397,18.79181043,135.16,135.15,77.86196848]
[1742052536817,26.19041043,135.16,135.15,77.86196848]
[1742052538809,18.79181043,135.16,135.15,77.86196848]
[1742052540005,26.19041043,135.16,135.15,77.86196848]
[1742052544508,18.79181043,135.16,135.15,77.86196848]
[1742052546308,18.85481043,135.16,135.15,77.86196848]
[1742052546612,26.395572,135.16,135.15,77.86196848]
[1742052546812,18.996972,135.16,135.15,77.86196848]
[1742052550313,18.996972,135.16,135.15,85.26106848]
[1742052550519,18.996972,135.16,135.15,77.86196848]
[1742052553628,18.996972,135.16,135.15,0.03]
[1742052556221,20.063,135.16,135.15,0.03]
[1742052558201,20.20516157,135.16,135.15,0.03]
[1742052559504,20.20516157,135.16,135.15,77.86196848]
[1742052562730,0.20516157,135.16,135.15,85.26106848]
[1742052566538,20.20516157,135.16,135.15,77.86196848]
[1742052570039,38.996972,135.16,135.15,77.86196848]
[1742052571338,38.996972,135.16,135.15,0.03]
[1742052572643,0.20516157,135.16,135.15,0.03]
[1742052572939,20.20516157,135.16,135.15,0.03]
[1742052573924,0.063,135.16,135.15,0.03]
[1742052575036,0.063,135.16,135.15,77.86196848]
[1742052576029,0.063,135.16,135.15,85.26106848]
[1742052581833,0.063,135.16,135.15,93.27546848]
[1742052584034,0.063,135.16,135.15,106.34728535]
[1742052592966,0.063,135.17,135.16,98.23938535]
[1742052593166,0.063,135.17,135.16,99.34868442]
[1742052593870,0.0001,135.17,135.16,99.34868442]
[1742052596075,0.0001,135.19,135.16,253.94518442]
[1742052596371,0.0001,135.19,135.18,14.59471687]
[1742052596669,0.0001,135.19,135.18,158.18368325]
[1742052597472,0.0001,135.21,135.19,6.5064]
[1742052597775,0.0001,135.21,135.2,14.18068969]
[1742052599169,0.063,135.25,135.23,77.76886848]
[1742052599373,0.063,135.25,135.23,98.23548535]
[1742052602377,0.0001,135.24,135.23,235.4442223]
[1742052602557,0.0001,135.24,135.23,242.23838535]
[1742052602945,0.0001,135.24,135.23,227.64366848]
[1742052603152,0.0001,135.24,135.23,221.26366848]
[1742052603851,0.0001,135.24,135.23,85.16366848]
[1742052604050,0.0001,135.24,135.23,77.76886848]
[1742052604784,0.0001,135.24,135.23,85.16366848]
[1742052607287,0.0001,135.24,135.23,77.76886848]
[1742052607773,13.07191687,135.24,135.23,77.76886848]
[1742052607949,13.35624001,135.24,135.23,77.76886848]
[1742052608151,32.00588887,135.24,135.23,77.76886848]
[1742052608347,91.68735635,135.24,135.23,77.76886848]
[1742052608557,98.06735635,135.24,135.23,77.76886848]
[1742052608857,18.933972,135.23,135.22,0.03]
[1742052609061,32.00578887,135.23,135.22,0.03]
[1742052609356,33.58488887,135.23,135.22,0.03]
[1742052609557,13.35614001,135.19,135.18,77.76886848]
[1742052613981,13.07181687,135.19,135.18,85.16636848]
[1742052614494,33.07181687,135.2,135.18,85.16636848]
[1742052614899,13.07181687,135.19,135.18,85.16636848]
[1742052616989,13.07181687,135.19,135.15,0.03]
[1742052616990,20.14216157,135.16,135.15,0.03]
[1742052617165,20.14216157,135.16,135.09,0.53]
[1742052617166,20.0,135.12,135.09,0.03]
[1742052617364,20.0,135.17,135.1,24.84794886]
[1742052617569,20.14216157,135.19,135.12,1.5837]
[1742052617768,20.0,135.19,135.12,1.5837]
[1742052618077,20.28432314,135.19,135.18,0.03]
[1742052618796,33.35614001,135.19,135.18,0.03]
[1742052622794,40.75304001,135.19,135.18,0.03]
[1742052623768,59.40268887,135.19,135.18,0.03]
[1742052624091,111.68995635,135.19,135.18,0.03]
[1742052624470,115.43411479,135.19,135.18,0.03]
[1742052624671,0.28432314,135.18,135.13,80.7]
[1742052624888,33.07181687,135.14,135.09,82.2797]
[1742052625083,13.07181687,135.12,135.09,82.2797]
[1742052625390,13.07181687,135.1,135.09,80.73]
[1742052626876,13.07181687,135.11,135.09,80.73]
[1742052628901,13.07181687,135.13,135.09,88.1324]
[1742052629078,33.07181687,135.14,135.09,101.20421687]
[1742052629276,13.07181687,135.13,135.09,88.1324]
[1742052629898,33.07181687,135.14,135.09,101.20421687]
[1742052630104,20.063,135.14,135.1,13.07181687]
[1742052630798,20.063,135.14,135.11,7.4013]
[1742052631005,33.13481687,135.14,135.11,7.4013]
[1742052631805,33.13481687,135.14,135.1,7.4019]
[1742052632329,0.063,135.14,135.11,13.07181687]
[1742052632870,0.063,135.14,135.1,255.77851687]
[1742052633381,0.063,135.14,135.11,13.07181687]
[1742052634704,0.063,135.14,135.12,7.4008]
[1742052634872,0.063,135.14,135.12,88.1008]
[1742052636306,13.13481687,135.14,135.12,88.1008]
[1742052636681,13.07181687,135.13,135.12,88.1008]
[1742052637501,13.07181687,135.13,135.12,80.7]
[1742052637990,13.35614001,135.13,135.12,80.7]
[1742052638803,13.35614001,135.13,135.12,88.1008]
[1742052638988,13.13481687,135.14,135.12,88.1008]
[1742052641912,20.0,135.13,135.12,88.1308]
[1742052642081,0.063,135.14,135.12,88.1308]
[1742052643916,0.0001,135.14,135.13,19.63141687]
[1742052645585,0.0001,135.14,135.13,28.14111244]
[1742052645890,0.0001,135.14,135.13,46.7907613]
[1742052646813,0.0001,135.14,135.13,45.68126573]
[1742052647496,0.063,135.18,135.14,80.6999]
[1742052647697,0.063,135.18,135.15,7.3991]
[1742052648495,0.063,135.18,135.15,25.897]
[1742052648720,0.063,135.18,135.15,38.96881687]
[1742052650617,0.063,135.18,135.15,25.897]
[1742052650821,0.063,135.18,135.15,106.5969]
[1742052652219,0.063,135.18,135.15,119.66871687]
[1742052653230,0.063,135.18,135.17,13.07181687]
[1742052653391,0.063,135.18,135.17,93.77171687]
[1742052654330,0.063,135.18,135.17,101.16971687]
[1742052656008,0.063,135.18,135.17,88.0979]
[1742052659330,0.063,135.18,135.17,101.16971687]
[1742052661436,0.063,135.18,135.17,119.81936573]
[1742052661628,13.07181687,135.23,135.18,13.07181687]
[1742052661818,13.07181687,135.23,135.18,93.77171687]
[1742052662835,13.07181687,135.23,135.19,25.8893]
[1742052663930,13.07181687,135.22,135.19,7.3969]
[1742052664232,13.07181687,135.2,135.19,7.3969]
[1742052664432,13.07181687,135.2,135.19,88.0968]
[1742052664847,13.07181687,135.2,135.19,80.6999]
[1742052666446,13.07181687,135.2,135.19,88.0968]
[1742052668238,13.07181687,135.21,135.19,88.0968]
[1742052668447,6.56,135.22,135.19,88.0968]
[1742052668448,19.63181687,135.22,135.19,88.0968]
[1742052668739,13.07181687,135.2,135.19,88.0968]
[1742052668945,13.07181687,135.2,135.19,80.6999]
[1742052669245,13.35614001,135.2,135.19,80.6999]
[1742052669450,13.35614001,135.2,135.19,88.0968]
[1742052670645,13.07181687,135.21,135.19,88.0968]
[1742052673849,19.63181687,135.22,135.19,88.0968]
[1742052674044,19.63181687,135.22,135.19,106.5892]
[1742052674350,6.56,135.22,135.19,106.5892]
[1742052674548,19.63181687,135.22,135.19,106.5892]
[1742052675137,13.07181687,135.21,135.19,106.5892]
[1742052675634,13.07181687,135.21,135.19,88.0968]
[1742052678237,13.07181687,135.2,135.19,88.0968]
[1742052678943,13.35614001,135.2,135.19,80.6999]
[1742052682363,13.35614001,135.2,135.19,88.0968]
[1742052682533,13.07181687,135.2,135.19,88.0968]
[1742052686254,13.07181687,135.2,135.19,80.6999]
[1742052688063,20.0,135.2,135.19,80.6999]
[1742052688257,33.07181687,135.2,135.19,80.6999]
[1742052692467,33.07181687,135.2,135.19,88.0968]
[1742052694472,0.063,135.21,135.19,88.0968]
[1742052698279,0.063,135.21,135.19,101.16861687]
[1742052702273,0.063,135.23,135.2,13.07181687]
[1742052702486,0.063,135.23,135.2,93.77171687]
[1742052704472,0.063,135.23,135.21,7.3959]
[1742052705874,0.0001,135.25,135.23,80.6369]
[1742052706177,0.0001,135.25,135.24,32.83009868]
[1742052707159,0.0001,135.25,135.24,168.93009868]
[1742052707358,0.0001,135.25,135.24,167.82146573]
[1742052708159,0.0001,135.25,135.24,175.21566573]
[1742052712077,0.063,135.28,135.27,88.0294]
[1742052712984,13.13481687,135.28,135.27,80.6368]
[1742052713161,0.063,135.28,135.27,88.0294]
[1742052713586,0.063,135.28,135.27,80.6368]
[1742052714166,13.13481687,135.28,135.27,88.0294]
[1742052714786,0.063,135.28,135.27,88.0294]
[1742052723592,0.063,135.3,135.27,119.58271687]
[1742052724181,0.063,135.3,135.27,106.5109]
[1742052724374,0.063,135.3,135.27,119.58271687]
[1742052725096,13.13481687,135.3,135.27,106.5109]
[1742052725401,13.07181687,135.29,135.27,106.5109]
[1742052725773,13.07181687,135.29,135.27,88.0294]
[1742052726406,13.13481687,135.3,135.27,88.0294]
[1742052726702,0.063,135.3,135.27,88.0294]
[1742052727896,0.03,135.29,135.27,106.5109]
[1742052731800,0.03,135.29,135.27,88.0294]
[1742052739212,13.10181687,135.29,135.27,88.0294]
[1742052739511,13.35614001,135.28,135.27,80.6368]
[1742052741102,20.74814001,135.28,135.27,80.6368]
[1742052741982,20.0,135.26,135.25,0.063]
[1742052742179,33.07181687,135.26,135.25,0.063]
[1742052747105,40.74924001,135.26,135.25,0.063]
[1742052747310,42.28374001,135.26,135.25,0.063]
[1742052748799,34.89064001,135.26,135.25,0.063]
[1742052750012,42.28374001,135.26,135.25,0.063]
[1742052750212,60.93338887,135.26,135.25,0.063]
[1742052750393,67.07228887,135.26,135.25,0.063]
[1742052754522,34.89064001,135.26,135.25,0.063]
[1742052762022,60.93338887,135.26,135.25,0.063]
[1742052762323,113.22065635,135.26,135.25,0.063]
[1742052765235,60.93338887,135.26,135.25,0.063]